[Event "Charlotte Spring GM-A 2024"]
[Site "Charlotte"]
[Date "2024.03.29"]
[Round "3.5"]
[White "Ali Marandi, Cemil Can"]
[Black "Levine, Joseph"]
[Result "1/2-1/2"]
[ECO "C14"]
[WhiteElo "2516"]
[BlackElo "2372"]
[Annotator "TA"]
[PlyCount "130"]
[EventDate "2024.03.27"]
[EventType "tourn"]
[EventCountry "USA"]
[SourceTitle "playchess.com"]
[Source "ChessBase"]
[SourceQuality "1"]
[TimeControl "5400+30"]

{[%evp 14,130,18,10,8,21,6,16,28,24,14,22,8,15,23,22,18,0,0,-5,-1,-7,-16,-11,0,-34,-28,-33,-38,-47,-39,-33,-38,-71,-63,-74,-86,-97,-109,-102,-83,-104,-90,-89,-37,-115,-121,-150,-166,-385,-395,-393,-388,-349,192,194,612,206,205,213,208,193,586,580,523,417,568,284,290,252,290,290,253,198,198,198,203,203,208,208,209,154,146,73,73,73,73,16,16,16,16,16,16,9,9,9,9,9,9,9,43,43,43,43,43,44,44,44,44,13,20,0,0,0,0,0,0,0,0]} 1. e4 {[%emt 0:00:03]} e6 {[%emt 0:01:06]} 2. d4 {[%emt 0:00:10]} d5 {[%emt 0:00:10]} 3. Nc3 {[%emt 0:00:08]} Nf6 {[%emt 0:00:07]} 4. Bg5 {[%emt 0:00:19]} Be7 {[%emt 0:00:11]} 5. e5 {[%emt 1:32:20]} Nfd7 {[%emt 0:00:09]} 6. h4 {[%emt 0:00:00]} Bxg5 {[%emt 0:00:26]} 7. hxg5 {[%emt 0:00:00]} Qxg5 {[%emt 0:00:10]} 8. Nh3 {[%emt 0:00:00]} Qh4 {[%emt 0:00:14]} 9. Nb5 {[%emt 0:00:00]} Kd8 {[%emt 0:04:05]} 10. Qd2 {[%emt 0:00:00]} a6 {[%emt 0:07:51]} 11. Nc3 {[%emt 0:00:00]} c5 {[%emt 0:02:23]} 12. dxc5 {[%emt 0:00:00]} Nc6 {[%emt 0:03:21]} 13. O-O-O {[%emt 0:00:00]} h6 {[%emt 0:14:37][%cal Od8c7]} (13... Kc7 {ist vielschichtiger.} 14. g3 Qe7 15. Qf4 Kb8) 14. f4 {[%emt 0:00:00]} Qe7 $1 {[%emt 0:09:47][%cal Od8c7]} 15. Qf2 {[%emt 0:00:00]} (15. a3 $5) 15... Qxc5 {[%emt 0:13:43]} 16. Qg3 {[%emt 0:00:00]} g6 {[%emt 0:01:30]} 17. Ng5 {[%emt 0:00:00]} Qf8 {[%emt 0:09:51]} 18. Nf3 {[%emt 0:00:00]} Kc7 {[%emt 0:08:39]} 19. Ne2 {[%emt 0:00:00]} Nc5 20. Ned4 {[%emt 0:00:00]} Bd7 {[%emt 0:06:01]} 21. Nxc6 {[%emt 0:00:00]} bxc6 {[%emt 0:00:00]} 22. Qe1 {[%emt 0:00:00]} a5 {[%emt 0:05:02]} 23. Nd4 Na4 $1 {[%emt 0:03:16]} 24. Nb3 {[%cal Oh1h3]} Qb4 {[%emt 0:04:54]} 25. c3 {Wehrt c5 ab} Qxf4+ {[%emt 0:05:27]} 26. Rd2 {[%emt 0:00:00] Schwarz muss nun Rh4 beachten.} Qg5 {[%emt 0:00:30]} 27. Rh4 {[%emt 0:00:00]} c5 {[%emt 0:00:00]} 28. Qf2 {[%csl LRc5,LRf7][%cal Oh4a4]} Qe7 {[%emt 0:00:00]} ({Günstiger ist} 28... Qxe5 $17 {...Qd6 ist eine echte Drohung.} 29. Nxc5 Nxc5 30. Qxc5+ Kb7) 29. Rf4 (29. c4 $1 $15 d4 30. Nxd4 cxd4 31. Rhxd4) 29... Rhf8 $17 {[%emt 0:00:00]} 30. c4 d4 {[%emt 0:02:00]} 31. Nxd4 $2 {[%emt 0:06:47]} (31. Kb1 {war angesagt.}) 31... cxd4 $19 {[%emt 0:00:00]} 32. Rfxd4 {[%emt 0:06:43]} Bc6 {[%emt 0:00:00]} 33. Rd6 Rfb8 {[%emt 0:00:57][%mdl 8192]} (33... f6 $1 $19 {[%cal Rf6e5] und alles wird gut.} 34. Qe3 fxe5) 34. b3 $1 $18 Nc3 {[%emt 0:01:03] [#]} (34... Rb7) 35. Rxc6+ $1 {[%emt 0:00:00][%mdl 512]} Kxc6 {[%emt 0:00:00]} 36. Rd6+ {[%emt 0:00:00]} Qxd6 {[%emt 0:00:00]} (36... Kc7 37. Qc5+ Kb7 38. Qc6+ Ka7 39. Qa6#) ({Vergiftet wäre} 36... Kb7 $2 37. Qb6+ Kc8 38. Qc5+ Qc7 39. Rc6 $18) 37. exd6 {[%emt 0:00:00]} Ne4 $2 {[%emt 0:00:10]} (37... f5 {ist eine bessere Chance.} 38. Qd4 Ne4) 38. Qxf7 {[%emt 0:00:00][%csl Gd6][%cal Rf7c7]} Nxd6 {[%emt 0:00:30]} 39. Qxg6 {[%emt 0:00:01]} a4 {[%emt 0:00:27]} 40. Qd3 {[%emt 0:02:35]} ({Nicht} 40. Qxh6 axb3 41. g3 bxa2 (41... Rxa2 42. Kb1 $11) 42. Bg2+ Kc7 (42... Kc5 43. Qe3+ Kb4 44. Qd2+ Kb3 45. Qd3+ Ka4 46. Bc6+ Kb4 47. Qxd6+ $11) 43. Qg7+ Kd8 44. Qg5+ Ke8 45. Bc6+ Kf7 46. Qh5+ Kg7 47. Qg5+ Kf7 48. Qh5+ Kg7 49. Qg5+ Kf8 50. Qh6+ Kg8 (50... Kf7 51. Qh7+ Kf6 52. Qh6+ Kf5 53. Qh5+ Kf6 54. Qh6+ Kf5 55. Qh5+ Kf6 56. Qh6+ $11) 51. Qg6+ Kf8 52. Qh6+ Kg8 (52... Kf7 53. Qh7+ Kf6 54. Qh6+ Kf5 55. g4+ Ke5 56. Qg7+ Kf4 57. Qd4+ Kg5 58. Qg7+ Kf4 59. Qd4+ Kg5 60. Qg7+ Kf4 $11) 53. Qg6+ Kf8 54. Qh6+ $11) 40... axb3 {[%emt 0:00:14]} 41. axb3 {[%emt 0:00:02]} Rxb3 {[%emt 0:01:31]} 42. Qxb3 {[%emt 0:00:18] Und Qf3+ würde nun gewinnen.} Ra1+ {[%emt 0:00:01]} 43. Kd2 {[%emt 0:01:09]} Rxf1 {[%emt 0:00:33][%mdl 4096] Endspiel. KQ-KRN} 44. Qa4+ {[%emt 0:00:52]} Kc5 45. Qa7+ {[%emt 0:00:30]} Kc6 46. c5 {[%emt 0:00:30] Weiss will mit Qb6+ Matt setzen.} Nc4+ {[%emt 0:01:28]} 47. Kd3 {[%emt 0:00:07]} Rf4 {[#]} 48. Kc3 {[%emt 0:00:37]} (48. g3 $142 $1 {[%cal Rg3f4]} Rg4 49. Qe7) 48... e5 $16 49. g3 {[%emt 0:00:35]} Rd4 {[%emt 0:01:30]} 50. Qe7 {[%emt 0:00:48]} ({Vorzuziehen ist} 50. g4 $16) 50... h5 $11 51. Qe8+ {[%emt 0:00:54]} Kxc5 {[%emt 0:01:00]} 52. Qxh5 {[%emt 0:01:02]} Re4 $1 {[%emt 0:01:36]} 53. g4 {[%emt 0:00:00][%cal Bg3g4,Bg4g5,Bg5g6][%mdl 32]} Re3+ {[%emt 0:00:00]} 54. Kc2 {[%emt 0:00:00] Droht g5 und aus.} Re2+ {[%emt 0:00:00]} 55. Kd1 Rg2 {[%emt 0:00:05]} 56. g5 {[%emt 0:00:18] g6 wäre nun fies.} Kd4 {[%emt 0:00:30]} 57. g6 {[%emt 0:00:30] Droht stark Qh7.} Nb2+ $1 {[%emt 0:00:49]} 58. Ke1 {[%emt 0:00:35]} Nd3+ {[%emt 0:00:05]} 59. Kf1 {[%emt 0:00:14] Weiss droht Qh4+ und Matt.} Nf4 {[%emt 0:00:03]} 60. Qd1+ {[%emt 0:00:26]} Kc5 $1 {[%emt 0:01:20]} 61. Qc1+ Kd5 $1 {[%emt 0:01:38] Die Stellung ist ausgeglichen.} 62. Qxf4 {[%emt 0:01:15]} exf4 {[%emt 0:00:30]} 63. Kxg2 {[%emt 0:00:05] Beabsichtigt g7 und Matt.} Ke6 64. Kf3 {[%emt 0:00:30]} Kf6 65. Kxf4 {[%emt 0:00:30]} Kxg6 {[%emt 0:00:00] Schwarz rettet sich ins Remis.   Gewichteter Fehlerwert: Weiß=0.40/Schwarz=0.30.  Gewinn verpasst:   	---       	Schwarz=1     Fehler:       	Weiß=5     	Schwarz=3     Ungenau:       	Weiß=4     	Schwarz=2     OK:         	Weiß=20    	Schwarz=25    Bester:       	Weiß=4     	Schwarz=9     Stark:        	Weiß=1     	Schwarz=6} 1/2-1/2

[Event "Charlotte Spring GM-A 2024"]
[Site "Charlotte"]
[Date "2024.03.29"]
[Round "4.1"]
[White "Wang, Tianqi"]
[Black "Levine, Joseph"]
[Result "0-1"]
[ECO "C00"]
[WhiteElo "2344"]
[BlackElo "2372"]
[Annotator "RC"]
[PlyCount "140"]
[EventDate "2024.03.27"]
[EventType "tourn"]
[EventCountry "USA"]
[SourceTitle "playchess.com"]
[Source "ChessBase"]
[SourceQuality "1"]
[TimeControl "5400+30"]

1. e4 {[%emt 0:02:50]} e6 {[%emt 0:00:07]} 2. d3 {[%emt 0:00:05]} d5 {[%emt 0:00:04]} 3. Nd2 {[%emt 0:00:07]} Nf6 {[%emt 0:00:06]} 4. Ngf3 {[%emt 0:00:20]} c5 {[%emt 0:00:10]} 5. g3 {[%emt 0:00:10]} Nc6 {[%emt 0:00:07]} 6. Bg2 {[%emt 0:00:05]} Be7 {[%emt 0:01:25]} 7. O-O {[%emt 0:00:20]} b6 {[%emt 0:02:13]} 8. Re1 {[%emt 0:04:39]} Bb7 {[%emt 0:01:03]} 9. exd5 {[%emt 0:00:42]} Nxd5 {[%emt 0:01:48]} 10. Nb3 {[%emt 0:00:22]} O-O {[%emt 0:07:18]} 11. d4 {[%emt 0:00:19]} cxd4 {[%emt 0:00:52]} 12. Nfxd4 {[%emt 0:03:59]} Nxd4 {[%emt 0:00:40]} 13. Nxd4 {[%emt 0:00:26]} Qc8 {[%emt 0:09:35]} 14. Qe2 {[%emt 0:16:46]} Bf6 {[%emt 0:09:10]} 15. Rd1 {[%emt 0:22:08]} Rd8 {[%emt 0:03:27]} 16. c3 {[%emt 0:10:30]} Rd7 {[%emt 0:20:41]} 17. a3 {[%emt 0:15:01]} h6 {[%emt 0:04:49]} 18. Nc2 {[%emt 0:09:05]} Qc7 {[%emt 0:18:03]} 19. Qg4 {[%emt 0:02:07]} Kf8 {[%emt 0:02:33]} 20. Be3 {[%emt 0:04:25]} Rad8 {[%emt 0:00:56]} 21. Bd4 {[%emt 0:00:58]} Qc4 {[%emt 0:03:05]} 22. Bf1 {[%emt 0:05:13]} Qb3 {[%emt 0:02:10]} 23. Bd3 {[%emt 0:00:38]} e5 {[%emt 0:01:55]} 24. Bf5 {[%emt 0:00:33]} exd4 {[%emt 0:00:49]} 25. Nxd4 {[%emt 0:00:18]} Bxd4 {[%emt 0:00:28]} 26. Bxd7 {[%emt 0:00:06]} Bc5 {[%emt 0:01:56]} 27. Rd2 {[%emt 0:00:09]} Nf6 {[%emt 0:03:23]} 28. Qf4 {[%emt 0:00:48]} Be7 {[%emt 0:00:51]} 29. Qc7 {[%emt 0:00:18]} Bd5 {[%emt 0:01:14]} 30. Bf5 {[%emt 0:00:40]} g6 {[%emt 0:00:53]} 31. Re1 {[%emt 0:00:15]} Re8 {[%emt 0:00:39]} 32. Bd3 {[%emt 0:00:47]} Be6 {[%emt 0:01:00]} 33. Rde2 {[%emt 0:00:35]} Bc5 {[%emt 0:01:22]} 34. Qc6 {[%emt 0:01:02]} Qd5 {[%emt 0:01:13]} 35. Qxd5 {[%emt 0:00:22]} Bxd5 {[%emt 0:00:06]} 36. Rxe8+ {[%emt 0:00:05]} Nxe8 {[%emt 0:00:04]} 37. b4 {[%emt 0:00:05]} Be7 {[%emt 0:00:22]} 38. c4 {[%emt 0:00:05]} Be6 {[%emt 0:00:50]} 39. Rc1 {[%emt 0:00:24]} Nc7 {[%emt 0:00:07]} 40. c5 {[%emt 0:00:05]} bxc5 {[%emt 0:00:11]} 41. bxc5 {[%emt 0:00:03]} Bd5 {[%emt 0:00:31]} 42. Bc4 {[%emt 0:00:28]} Be4 {[%emt 0:01:00]} 43. a4 {[%emt 0:00:21]} Bc6 {[%emt 0:01:52]} 44. Bb5 {[%emt 0:02:17]} Bxb5 {[%emt 0:00:01]} 45. axb5 {[%emt 0:00:03]} Nxb5 {[%emt 0:00:04]} 46. Rb1 {[%emt 0:00:09]} a6 {[%emt 0:00:16]} 47. c6 {[%emt 0:00:20]} Bd6 {[%emt 0:00:40]} 48. Ra1 {[%emt 0:00:41]} Nc7 {[%emt 0:00:04]} 49. Rb1 {[%emt 0:00:03]} Ke7 {[%emt 0:00:12]} 50. Re1+ {[%emt 0:00:25]} Ne6 {[%emt 0:00:19]} 51. Rd1 {[%emt 0:00:08]} Nc5 {[%emt 0:01:07]} 52. Rd5 {[%emt 0:00:12]} Ne6 {[%emt 0:00:31]} 53. h4 {[%emt 0:00:13]} h5 {[%emt 0:01:31]} 54. Kg2 {[%emt 0:00:09]} Bc7 {[%emt 0:00:48]} 55. Kf3 {[%emt 0:00:32]} a5 {[%emt 0:00:17]} 56. Rd7+ {[%emt 0:00:28]} Kf6 {[%emt 0:00:30]} 57. Ke2 {[%emt 0:00:25]} a4 {[%emt 0:00:38]} 58. Kd1 {[%emt 0:00:26]} a3 {[%emt 0:00:34]} 59. Kc1 {[%emt 0:02:02]} Bb6 {[%emt 0:00:22]} 60. f3 {[%emt 0:01:14]} Bc7 {[%emt 0:00:46]} 61. g4 {[%emt 0:00:07]} Bg3 {[%emt 0:00:39]} 62. gxh5 {[%emt 0:00:31]} gxh5 {[%emt 0:00:04]} 63. Kb1 {[%emt 0:00:24]} Bxh4 {[%emt 0:00:50]} 64. c7 {[%emt 0:00:16]} Nxc7 {[%emt 0:00:01]} 65. Rxc7 {[%emt 0:00:07]} Bg3 {[%emt 0:00:15]} 66. Ra7 {[%emt 0:01:44]} h4 {[%emt 0:00:42]} 67. Rxa3 {[%emt 0:00:51]} h3 {[%emt 0:00:04]} 68. Kc2 {[%emt 0:01:08]} h2 {[%emt 0:00:56]} 69. Ra1 {[%emt 0:00:03]} Bf2 {[%emt 0:00:24]} 70. Rh1 {[%emt 0:01:10]} Bg1 {[%emt 0:00:02]} 0-1

[Event "Charlotte Spring GM-A 2024"]
[Site "Charlotte"]
[Date "2024.03.29"]
[Round "4.2"]
[White "Homa, Seth"]
[Black "Ali Marandi, Cemil Can"]
[Result "0-1"]
[ECO "A13"]
[WhiteElo "2234"]
[BlackElo "2516"]
[Annotator "TA"]
[PlyCount "70"]
[EventDate "2024.03.27"]
[EventType "tourn"]
[EventCountry "USA"]
[SourceTitle "playchess.com"]
[Source "ChessBase"]
[SourceQuality "1"]
[TimeControl "5400+30"]

{[%evp 9,69,35,37,28,28,19,20,24,26,25,25,10,64,23,100,14,60,0,72,29,32,-12,-22,-27,0,0,0,0,19,17,95,39,52,43,91,9,0,0,110,0,8,-45,-49,-59,-35,-110,-106,-220,-210,-255,-220,-221,-177,-288,-194,-1277,-1273,-1339,-1239,-29998,-29999,-29999]} 1. c4 {[%emt 0:00:15]} e6 {[%emt 0:00:05]} 2. g3 {[%emt 0:00:18]} d5 {[%emt 0:00:05]} 3. Bg2 {[%emt 0:00:13]} Nf6 {[%emt 0:00:06]} 4. Nf3 {[%emt 0:00:16]} Bd6 {[%emt 0:00:06]} 5. d4 {[%emt 0:01:02]} h6 {[%emt 0:00:25]} 6. O-O {[%emt 0:00:28]} O-O {[%emt 0:01:05]} 7. Qc2 {[%emt 0:00:28]} b6 {[%emt 0:01:39]} 8. Nc3 {[%emt 0:00:35] The position is equal.} Bb7 {[%emt 0:02:02]} 9. cxd5 {[%emt 0:00:18]} exd5 {[%emt 0:00:32]} 10. Bf4 {[%emt 0:05:15]} Re8 {[%emt 0:03:27]} (10... Bxf4 $11 11. gxf4 c5) 11. Rfd1 {[%emt 0:02:09]} Nbd7 {[%emt 0:03:48]} (11... Bxf4 $11 12. gxf4 c6) 12. Rac1 {[%emt 0:01:37]} (12. Bxd6 $16 cxd6 13. Qb3) 12... a6 {[%emt 0:07:09]} (12... Bxf4 $11 {is superior.} 13. gxf4 c5) 13. h4 {[%emt 0:25:36]} (13. Bxd6 $14 cxd6 14. Qb3) 13... Rc8 {[%emt 0:07:49]} (13... Bxf4 $11 14. gxf4 c5) 14. e3 {[%emt 0:12:33]} Bxf4 {[%emt 0:02:11]} 15. gxf4 {[%emt 0:00:17]} c5 {[%emt 0:02:06]} 16. Qf5 {[%emt 0:01:12]} Rc7 {[%emt 0:03:35]} 17. dxc5 {[%emt 0:14:10]} bxc5 {[%emt 0:10:12]} 18. Ne5 {[%emt 0:00:12][%cal Rg2d5]} Nf8 {[%emt 0:05:44]} 19. Qh3 {[%emt 0:07:39]} Ne6 {[%emt 0:04:51]} (19... Bc8 $11 20. Qg3 Bb7) 20. b3 {[%emt 0:13:41]} (20. Qh1 $1 $16) 20... Qa8 {[%emt 0:06:51]} 21. Ne2 {[%emt 0:02:08]} Rd8 {[%emt 0:05:51]} (21... d4 $14) 22. f5 {[%emt 0:03:03]} (22. Bf3 $16) 22... Nf8 $11 {[%emt 0:00:24][%cal Be6f8,Bf8d7,Bd7c5,Bc5e4][%mdl 32]} 23. Nf4 {[%emt 0:00:06]} Re8 {[%emt 0:04:46]} (23... Qc8 $11 {remains equal.}) 24. Ned3 {[%emt 0:04:15]} (24. Ng4 $1 $16 {[%cal Rg4f6]} N8h7 25. Qg3) 24... Qc8 {[%emt 0:01:05]} 25. b4 {[%emt 0:01:00]} ({White should play} 25. Nb2 $11) 25... N8d7 $15 {[%emt 0:02:45]} 26. bxc5 {[%emt 0:00:45]} Nxc5 {[%emt 0:00:07]} 27. Nb4 {[%emt 0:00:43]} (27. Nxc5 $15 Rxc5 28. Rb1) 27... Nce4 $17 {[%emt 0:00:43]} 28. Ne2 {[%emt 0:03:08] [#]} (28. Rxc7 $17 {was necessary.} Qxc7 29. Qf3) 28... a5 $1 $19 {[%emt 0:02:28]} 29. Nd3 {[%emt 0:00:11]} Ba6 {[%emt 0:01:35] ...Bxd3 would now be deadly.} 30. Ndf4 {[%emt 0:00:13]} Rc2 {[%emt 0:01:42][%cal Od5d4] ...d4! is the strong threat.} 31. Bf1 {[%emt 0:00:52]} (31. Bf3 $142) 31... Qc5 {[%emt 0:02:15][%cal Oe4f2] White must now prevent ...Nxf2!} 32. a4 $2 {[%emt 0:00:49] [#]} (32. Qf3) 32... Nxf2 $1 {[%emt 0:01:55][%mdl 512]} 33. Kxf2 {[%emt 0:00:36] [#]} Rxe3 $3 {[%emt 0:00:08][%mdl 512]} 34. Rxc2 {[%emt 0:00:28]} (34. Qxe3 Ng4+) 34... Rxe2+ {[%emt 0:00:20]} 35. Kf3 {[%emt 0:00:42]} Qf2# {[%emt 0:00:12] Weighted Error Value: White=0.65/Black=0.32.  Mistake:       	White=10    	Black=7      Inaccurate:     	White=3     	Black=2      OK:         	White=6     	Black=6      Best:        	---       	Black=3      Brilliant:      	---       	Black=1} 0-1

[Event "Charlotte Spring GM-A 2024"]
[Site "Charlotte"]
[Date "2024.03.29"]
[Round "4.3"]
[White "Cordova, Emilio"]
[Black "Chen, Ryo"]
[Result "0-1"]
[ECO "D00"]
[WhiteElo "2551"]
[BlackElo "2316"]
[Annotator "TA"]
[PlyCount "72"]
[EventDate "2024.03.27"]
[EventType "tourn"]
[EventCountry "USA"]
[SourceTitle "playchess.com"]
[Source "ChessBase"]
[SourceQuality "1"]
[TimeControl "5400+30"]

{[%evp 9,72,0,0,0,0,-38,-41,-52,-45,-41,-49,-52,-47,-37,-45,-52,-70,-131,-122,-147,-155,-152,-143,-148,-133,-167,-166,-191,-196,-187,-131,-142,-137,-143,-138,-134,-128,-126,-126,-177,-208,-149,-161,-198,-214,-229,-248,-316,-302,-312,-283,-318,-298,-347,-347,-418,-419,-406,-406,-532,-527,-502,-504,-563,-563]} 1. d4 {[%emt 0:05:32]} Nf6 {[%emt 0:00:11]} 2. Bg5 {[%emt 0:00:48]} d5 {[%emt 0:01:22]} 3. Nd2 {[%emt 0:01:14]} c5 {[%emt 0:01:37]} 4. dxc5 {[%emt 0:02:06]} Na6 {[%emt 0:02:53]} 5. Bxf6 {[%emt 0:05:13]} gxf6 {[%emt 0:08:18]} 6. e4 {[%emt 0:09:29] And now Bb5+ would win.} Nxc5 {[%emt 0:02:22]} 7. Bb5+ {[%emt 0:16:59]} Bd7 {[%emt 0:00:05]} 8. Qe2 {[%emt 0:00:13] Black is slightly better.} dxe4 $1 {[%emt 0:03:40]} 9. Nxe4 {[%emt 0:03:20]} Nxe4 {[%emt 0:01:15]} 10. Bxd7+ {[%emt 0:00:08]} Qxd7 {[%emt 0:00:04]} 11. Qxe4 {[%emt 0:00:07]} f5 {[%emt 0:01:31]} 12. Qe2 {[%emt 0:01:21]} Rg8 $1 {[%emt 0:03:52]} 13. g3 {[%emt 0:00:09] [#]} (13. f4 $15) 13... Rg6 $1 $17 {[%emt 0:01:38] ...Re6 is the strong threat.} 14. Rd1 {[%emt 0:00:58] [#]} Qc6 {[%emt 0:00:44]} 15. Qf3 {[%emt 0:02:17]} (15. Nf3 $2 Re6 16. Rd3 Rxe2+ $19) 15... Qxc2 {[%emt 0:01:37][%cal Og6b6]} 16. Kf1 {[%emt 0:04:25]} Qe4 {[%emt 0:04:47] Black is more active.} ({Much less strong is} 16... Qxb2 17. Qxf5 e6 (17... Qxa2 18. Qd7#) 18. Qe4 $15) 17. Rd5 {[%emt 0:00:21]} Rb6 {[%emt 0:02:48]} 18. b3 {[%emt 0:10:46]} e6 {[%emt 0:00:55]} 19. Rd2 {[%emt 0:01:04]} a5 {[%emt 0:09:13]} (19... Rd8 $19 20. Qxe4 fxe4) 20. Re2 {[%emt 0:02:58]} Qxf3 {[%emt 0:00:17]} 21. Nxf3 {[%emt 0:00:07]} a4 {[%emt 0:00:12]} 22. bxa4 {[%emt 0:00:06]} Rxa4 {[%emt 0:00:35] Hoping for ...Rba6.} 23. Kg2 {[%emt 0:00:34]} Rba6 {[%emt 0:01:55]} 24. Rc1 {[%emt 0:02:01]} (24. Rc2 $17) 24... Rxa2 $19 {[%emt 0:01:30]} 25. Rxa2 {[%emt 0:05:31]} Rxa2 {[%emt 0:00:02][%mdl 4096] Endgame. KRB-KRN} 26. Rc8+ {[%emt 0:00:13]} Ke7 {[%emt 0:00:05]} 27. Nd4 {[%emt 0:00:15]} Rb2 {[%emt 0:10:39]} 28. Kf1 {[%emt 0:00:11]} Bg7 {[%emt 0:01:22]} 29. Nf3 {[%emt 0:00:17]} Kd7 {[%emt 0:01:02]} 30. Rb8 {[%emt 0:00:30]} Bf6 {[%emt 0:01:06]} 31. h4 {[%emt 0:00:10]} h6 {[%emt 0:00:57] Prevents Ng5.} 32. Rf8 {[%emt 0:00:04]} Ke7 {[%emt 0:00:06]} 33. Rb8 {[%emt 0:00:04]} b5 {[%emt 0:02:17]} 34. Ne1 {[%emt 0:00:09]} Bd4 {[%emt 0:00:51] Black is clearly winning.} 35. Nd3 {[%emt 0:00:47]} Rd2 {[%emt 0:00:08]} 36. Nb4 {[%emt 0:00:40]} Bxf2 {[%emt 0:36:34] Weighted Error Value: White=0.23 (precise) /Black=0.04 (flawless) .  Mistake:       	White=2     	Black=1      Inaccurate:     	White=2     	---        OK:         	White=5     	Black=15     Best:        	White=3     	Black=3      Strong:       	---       	Black=3} 0-1

[Event "Charlotte Spring GM-A 2024"]
[Site "Charlotte"]
[Date "2024.03.29"]
[Round "4.4"]
[White "Cruz, Cristhian"]
[Black "Putnam, Liam"]
[Result "1/2-1/2"]
[ECO "A28"]
[WhiteElo "2487"]
[BlackElo "2323"]
[Annotator "TA"]
[PlyCount "25"]
[EventDate "2024.03.27"]
[EventType "tourn"]
[EventCountry "USA"]
[SourceTitle "playchess.com"]
[Source "ChessBase"]
[SourceQuality "1"]
[TimeControl "5400+30"]

{[%evp 16,25,-11,-12,3,-4,0,-7,1,0,0,0]} 1. c4 {[%emt 0:03:06]} Nf6 {[%emt 0:04:15]} 2. Nc3 {[%emt 0:00:54]} e5 {[%emt 0:00:19]} 3. Nf3 {[%emt 0:01:33]} Nc6 {[%emt 0:00:07]} 4. d3 {[%emt 0:00:13]} d5 {[%emt 0:03:06]} 5. cxd5 {[%emt 0:00:13]} Nxd5 {[%emt 0:00:05]} 6. e3 {[%emt 0:00:48]} Be7 {[%emt 0:05:48]} 7. Be2 {[%emt 0:00:53]} O-O {[%emt 0:00:39]} 8. O-O {[%emt 0:00:19]} Be6 {[%emt 0:00:30]} 9. Bd2 {[%emt 0:02:01] The position is equal.} Qd7 {[%emt 0:04:57]} 10. a3 {[%emt 0:02:15]} a5 {[%emt 0:01:11]} 11. Rc1 {[%emt 0:03:58]} Rfd8 {[%emt 0:05:27]} 12. Ne4 {[%emt 0:01:57]} Nf6 {[%emt 0:00:33]} 13. Neg5 {[%emt 0:12:22] Not much happened in this game.   Weighted Error Value: White=0.04 (flawless) /Black=0.07 (flawless) .  OK:         	White=1     	---} 1/2-1/2

[Event "Charlotte Spring GM-A 2024"]
[Site "Charlotte"]
[Date "2024.03.29"]
[Round "4.5"]
[White "Gauri, Shankar"]
[Black "Tsay, Vincent"]
[Result "1/2-1/2"]
[ECO "E05"]
[WhiteElo "2345"]
[BlackElo "2337"]
[Annotator "RC"]
[PlyCount "34"]
[EventDate "2024.03.27"]
[EventType "tourn"]
[EventCountry "USA"]
[SourceTitle "playchess.com"]
[Source "ChessBase"]
[SourceQuality "1"]
[TimeControl "5400+30"]

1. d4 {[%emt 0:13:47]} d5 {[%emt 0:00:10]} 2. c4 {[%emt 0:00:14]} e6 {[%emt 0:00:33]} 3. Nf3 {[%emt 0:00:06]} Nf6 {[%emt 0:00:21]} 4. g3 {[%emt 0:00:10]} Be7 {[%emt 0:01:16]} 5. Bg2 {[%emt 0:01:04]} O-O {[%emt 0:00:12]} 6. O-O {[%emt 0:00:12]} dxc4 {[%emt 0:00:20]} 7. Qc2 {[%emt 0:00:15]} a6 {[%emt 0:00:40]} 8. a4 {[%emt 0:00:29]} Bd7 {[%emt 0:00:11]} 9. Ne5 {[%emt 0:14:23]} Nc6 {[%emt 1:31:17]} 10. Qxc4 {[%emt 1:04:50]} Nxe5 {[%emt 0:00:00]} 11. dxe5 {[%emt 0:00:00]} Nd5 {[%emt 0:01:00]} 12. Nc3 {[%emt 0:00:00]} c6 {[%emt 0:00:00]} 13. Rd1 {[%emt 0:00:00]} a5 {[%emt 0:00:00]} 14. Qg4 {[%emt 0:00:00]} Qc7 {[%emt 0:00:00]} 15. Bg5 {[%emt 0:00:00]} Bxg5 {[%emt 0:00:00]} 16. Qxg5 {[%emt 0:00:00]} h6 {[%emt 0:00:00]} 17. Qh5 {[%emt 0:00:00]} Be8 {[%emt 0:03:00]} 1/2-1/2

[Event "Charlotte Spring GM-A 2024"]
[Site "Charlotte"]
[Date "2024.03.30"]
[Round "5.1"]
[White "Tsay, Vincent"]
[Black "Wang, Tianqi"]
[Result "1/2-1/2"]
[ECO "D00"]
[WhiteElo "2337"]
[BlackElo "2344"]
[Annotator "RC"]
[PlyCount "82"]
[EventDate "2024.03.27"]
[EventType "tourn"]
[EventCountry "USA"]
[SourceTitle "playchess.com"]
[Source "ChessBase"]
[SourceQuality "1"]
[TimeControl "5400+30"]

1. d4 {[%emt 1:31:00]} d5 2. Bf4 {[%emt 0:00:30]} c5 {[%emt 1:31:30]} 3. e3 {[%emt 0:00:30]} Nc6 {[%emt 0:00:30]} 4. c3 {[%emt 0:00:30]} Qb6 5. Qb3 {[%emt 0:00:30]} c4 6. Qc2 {[%emt 0:00:30]} e5 {[%emt 0:01:30]} 7. Bxe5 {[%emt 0:00:30]} Bf5 {[%emt 0:00:30]} 8. Qc1 {[%emt 0:00:30]} Nxe5 {[%emt 0:00:30]} 9. dxe5 {[%emt 0:00:30]} f6 {[%emt 0:00:30]} 10. e6 {[%emt 0:00:30]} Bxe6 11. Nf3 {[%emt 0:00:30]} f5 12. b3 {[%emt 0:00:30]} Nf6 {[%emt 0:01:30]} 13. Nbd2 {[%emt 0:00:30]} f4 14. Nd4 {[%emt 0:00:30]} fxe3 {[%emt 0:01:00]} 15. fxe3 {[%emt 0:00:30]} Bc5 {[%emt 0:00:30]} 16. Be2 {[%emt 0:00:30]} O-O {[%emt 0:00:30]} 17. O-O {[%emt 0:00:30]} cxb3 {[%emt 0:00:30]} 18. axb3 {[%emt 0:00:30]} Bd7 {[%emt 0:00:30]} 19. Bf3 {[%emt 0:00:30]} Rae8 {[%emt 0:00:30]} 20. Re1 {[%emt 0:00:30]} Kh8 {[%emt 0:00:30]} 21. Qc2 {[%emt 0:00:30]} Qc7 {[%emt 0:00:30]} 22. Nf1 {[%emt 0:00:30]} a6 {[%emt 0:00:30]} 23. c4 {[%emt 0:00:30]} dxc4 {[%emt 0:00:30]} 24. Qxc4 {[%emt 0:00:30]} Qb6 {[%emt 0:00:30]} 25. Rac1 {[%emt 0:00:30]} Re5 {[%emt 0:00:30]} 26. Rcd1 {[%emt 0:00:30]} Rfe8 {[%emt 0:00:30]} 27. h3 {[%emt 0:00:30]} h5 28. Qd3 {[%emt 0:00:30]} Rg5 {[%emt 0:01:00]} 29. h4 {[%emt 0:00:30]} Rge5 {[%emt 0:00:30]} 30. Ng3 {[%emt 0:00:30]} Bg4 {[%emt 0:00:30]} 31. Kf2 {[%emt 0:00:30]} Nd5 {[%emt 0:00:30]} 32. Ne4 {[%emt 0:00:30]} Bb4 {[%emt 0:00:30]} 33. Ng5 {[%emt 0:00:30]} Bxe1+ {[%emt 0:00:30]} 34. Rxe1 {[%emt 0:00:30]} Rxg5 {[%emt 0:00:30]} 35. hxg5 {[%emt 0:00:30]} Rf8 36. Kg1 {[%emt 0:00:30]} Qd6 {[%emt 0:01:00]} 37. Bxd5 {[%emt 0:00:30]} Qxd5 {[%emt 0:00:30]} 38. g6 {[%emt 0:00:30]} Qd6 {[%emt 0:00:30]} 39. Rf1 {[%emt 0:00:30]} Rf6 {[%emt 0:00:30]} 40. Rxf6 {[%emt 0:00:30]} gxf6 {[%emt 0:00:30]} 41. Qe4 {[%emt 0:00:30]} Qe5 {[%emt 0:00:30]} 1/2-1/2